Cogmind - Beta 15 @@@ ROGUE MODE // 2025.07.31 @ 20:59:59 Player: FenRhew Result: Destroyed by H-66 Slayer with Gauss Rifle Performance ------------- Evolutions (4) 2000 Regions Visited (4) 800 Robots Destroyed (64) 320 Value Destroyed (2856) 2856 Prototype IDs (11) 220 Alien Tech Used (0) 0 Bonus (1217) 1217 TOTAL SCORE: 7413 Bonus ------- High Alert Combat Kills 356 Follower Combat Kills 74 Registered with UFD 300 Met Optimus in HQ 500 Friendly Fire -13 Cogmind --------- Core Integrity 0/850 Matter 195/300 Energy 150/150 System Corruption 14% Temperature Cool (0) Movement Rolling (115) Ox1 Location -6/Factory Parts ------- > --- POWER (1) -------- Light Angular Momentum Engine > --- PROPULSION (4) --- Armored Huge Wheel > --- UTILITY (7) ------ High-capacity Storage Unit Advanced Terrain Scan Processor Advanced Targeting Computer Target Analyzer > --- WEAPON (3) ------- Companion Sword > --- INVENTORY (20) --- Light Angular Momentum Engine Matter Compressor (0) Improved Signal Interpreter Advanced Terrain Scanner Phase Shifter Improved Shield Generator System Shield High-powered Tractor Beam Drone Bay (2/2) CPS Tube (1) Peak State ------------ > --- POWER ------------ Light Angular Momentum Engine > --- PROPULSION ------- Carbon-fiber Leg Improved Carbon-fiber Leg Flexi-carbon Leg Flexi-carbon Leg > --- UTILITY ---------- Scrap Suit Advanced Heat Sink High-capacity Storage Unit Advanced Terrain Scan Processor Advanced Targeting Computer Layered Light Armor Plating > --- WEAPON ----------- Gauss Cannon Gauss Cannon Companion Sword > --- INVENTORY -------- Light Angular Momentum Engine Armored Huge Wheel Advanced Heat Sink Cooling System Matter Compressor Improved Signal Interpreter Advanced Terrain Scanner Target Analyzer Phase Shifter Layered Light Armor Plating Improved Shield Generator System Shield High-powered Tractor Beam Drone Bay Proton Cannon Proton Cannon Gauss Rifle Gauss Cannon CPS Tube [Rating: 69] Favorites ----------- Power Deuterium Engine Engine Deuterium Engine Reactor Light Antimatter Reactor Propulsion Flexi-carbon Leg Treads Medium Treads Leg Flexi-carbon Leg Wheel Subdweller Monowheel Utility High-capacity Storage Unit Device Scrap Suit Storage High-capacity Storage Unit Processor Advanced Terrain Scan Processor Hackware Hacking Suite Protection Hardened Medium Armor Plating Weapon Gauss Rifle Energy Gun Gatling Laser Energy Cannon Subdweller Beam Cannon Ballistic Gun Gauss Rifle Ballistic Cannon Gauss Cannon Launcher Improved Proton Missile Launcher Special Weapon CPS Tube Impact Weapon Shock Maul Slashing Weapon Companion Sword Build | -11 -10 -10 -9 -6 ------- Run | Yrd Mat Sub Scr Fac Slots Evolved 8 | . . . . 8 Power . | . . . . . Propulsion 2 | . . . . 2 Utility 5 | . . . . 5 Weapon 1 | . . . . 1 Parts Attached 88 | 7 3 6 12 60 Power 12 | 1 . 2 1 8 Engine 11 | 1 . 2 1 7 Core . | . . . . . Reactor 1 | . . . . 1 Propulsion 28 | 2 2 1 3 20 Treads 4 | 2 . . . 2 Leg 20 | . 2 . 3 15 Wheel 4 | . . 1 . 3 Hover . | . . . . . Flight . | . . . . . Utility 27 | 2 1 1 3 20 Device 13 | 1 . 1 . 11 Storage 4 | 1 1 . 1 1 Processor 3 | . . . . 3 Hackware 1 | . . . . 1 Protection 6 | . . . 2 4 Artifact . | . . . . . Weapon 21 | 2 . 2 5 12 Energy Gun 3 | . . . 2 1 Energy Cannon 3 | . . 1 . 2 Ballistic Gun 8 | 2 . 1 3 2 Ballistic Cannon 3 | . . . . 3 Launcher 1 | . . . . 1 Special Weapon 1 | . . . . 1 Impact Weapon 1 | . . . . 1 Slashing Weapon 1 | . . . . 1 Piercing Weapon . | . . . . . Special Melee Weapon . | . . . . . Unidentified Prototypes 3 | . . . . 3 Corrupted Parts 1 | . . . . 1 System Corruption 10 | . . . . 10 Parts Lost 45 | . . 5 . 40 Power 6 | . . 1 . 5 Propulsion 15 | . . 2 . 13 Utility 11 | . . 1 . 10 Weapon 13 | . . 1 . 12 Highest Loss Streak 11 | . . 5 . 11 To Critical Strikes 1 | . . . . 1 Average Backups 16 | 4 8 7 18 17 Power 1 | . 1 . . 1 Propulsion 1 | 3 3 1 1 1 Utility 7 | . 2 3 7 9 Weapon 5 | . 1 1 7 4 Tool/Special . | . . . . . Unused Backups 26 | . 1 2 12 11 Power . | . . . . . Propulsion 5 | . 1 1 . 3 Utility 12 | . . . 5 7 Weapon 9 | . . 1 7 1 Tool/Special . | . . . . . Average Slot Usage (%) 92 | . 100 95 97 83 Engine 10 | . 14 14 14 5 Leg 22 | . 27 24 23 20 Wheel 2 | . . 1 4 1 Device 6 | . 14 12 . 11 Storage 10 | . 14 14 14 6 Processor 3 | . . . . 8 Protection 7 | . . . 12 5 Energy Gun 9 | . . . 20 . Energy Cannon 1 | . . 1 3 . Ballistic Gun 9 | . 28 26 4 8 Ballistic Cannon 2 | . . . . 7 Peak Build Rating 69 | 9 9 11 31 69 Average Rating 33 | 6 9 9 23 55 On Entrance 11 | . 9 9 10 30 Naked Turns . | . . . . . Heaviest Build 85 | 14 14 22 69 85 Greatest Support 73 | 40 40 20 40 73 Greatest Overweight (x) 3 | . . 1 3 2 Average Overweight (x) 1 | . . . 2 . Largest Inventory Capacity 20 | 8 15 8 20 20 Average Capacity 18 | 7 8 8 19 20 Most Carried 20 | 8 9 8 20 20 Average Carried 17 | 5 8 7 18 18 Final Capacity 20 | 8 8 8 20 20 Final Carried 18 | 8 8 6 18 10 Class Distribution -------------------- 64% | Mutant 8% | Scavenger-Mutant 8% | Skirmisher 5% | Tank 5% | Scavenger-Skirmisher 4% | Scavenger-Gunner Dominant Class ---------------- Mutant | -10/Materials Mutant | -10/Subcaves Mutant | -9/Scraptown Skirmisher | -6/Factory Resources | -11 -10 -10 -9 -6 ----------- Run | Yrd Mat Sub Scr Fac Matter Collected 3199 | 306 43 104 108 2638 Remotely 572 | . . . . 572 Salvage Created 2534 | 131 65 210 . 2128 Parts 140 | 11 5 14 . 110 Haulers Intercepted . | . . . . . Recyclers Shooed 9 | 1 . . . 8 Parts Field Recycled . | . . . . . Retrieved Matter . | . . . . . Parts Self-Destructed 4 | . . 4 . . Prevented . | . . . . . Kills | -11 -10 -10 -9 -6 ------- Run | Yrd Mat Sub Scr Fac Combat Hostiles Destroyed 54 | . 1 5 . 48 Melee 14 | . . . . 14 Guns 14 | . 1 4 . 9 Cannons 21 | . . 1 . 20 AOE 5 | . . . . 5 Classes Destroyed 16 | 2 2 1 . 11 Worker 1 | . . . . 1 Builder 2 | . . . . 2 Tunneler 3 | 3 . . . . Recycler 2 | 1 . . . 1 Operator 2 | . 1 . . 1 Swarmer 4 | . . . . 4 Cutter 3 | . . . . 3 Grunt 23 | . 1 . . 22 Brawler 1 | . . . . 1 Duelist 2 | . . . . 2 Sentry 4 | . . . . 4 Specialist 4 | . . . . 4 Hunter 3 | . . . . 3 Programmer 4 | . . . . 4 Heavy 1 | . . . . 1 Subdweller 5 | . . 5 . . Best Kill Streak 5 | 4 1 3 . 5 Combat Bots Only 5 | . 1 3 . 5 Max Kills in Single Turn 3 | 2 1 1 . 3 Gunslinging . | . . . . . Exploded 3 | . . . . 3 Melee 1 | . . . . 1 Uniques/NPCs Destroyed . | . . . . . Combat | -11 -10 -10 -9 -6 -------- Run | Yrd Mat Sub Scr Fac Hostile Shots Fired 574 | . 11 34 . 529 Missed 169 | . 1 13 . 155 Hits 405 | . 10 21 . 374 Melee 16 | . . . . 16 Projectile 389 | . 10 21 . 358 AOE 8 | . . 6 . 2 Critical Strikes 21 | . . . . 21 Part Disruptions 5 | . . . . 5 Damage Taken 7430 | . 133 661 . 6636 Core 1108 | . 13 226 . 869 Absorbed by Shields . | . . . . . Regen/Repaired (Parts) 186 | . . . . 186 Core Remaining (%) 52 | 100 . . 4 . Volleys Fired 185 | 9 7 21 . 148 Largest 3 | 2 2 2 . 3 Hottest 178 | 40 40 110 . 178 Shots Fired 423 | 18 14 42 . 349 Gun 213 | 18 14 36 . 145 Cannon 204 | . . 6 . 198 Launcher 5 | . . . . 5 Special 1 | . . . . 1 Kinetic 395 | 18 14 36 . 327 Thermal 11 | . . 6 . 5 Explosive . | . . . . . Electromagnetic 16 | . . . . 16 Robot Hit Streak 19 | 5 1 19 . 9 Robot Miss Streak 8 | 1 4 4 . 8 Penetration Max 1 | . . . . 1 Secondary Targets 3 | . . 1 . 2 Max Gunslinging Chain 1 | . . 1 . 1 Shots Hit Robots 279 | 13 3 29 . 234 Core Hits 141 | 6 2 9 . 124 Critical Kills 1 | . . . . 1 Critical Parts Destroyed . | . . . . . Critical Strikes 22 | . . . . 22 Destroy 1 | . . . . 1 Blast 19 | . . . . 19 Melee Attacks 60 | . . . . 60 Impact 3 | . . . . 3 Slashing 57 | . . . . 57 Piercing . | . . . . . Sneak Attacks 1 | . . . . 1 Combat Hostiles . | . . . . . Follow-up Attacks . | . . . . . Damage Inflicted 8241 | 151 55 449 . 7586 Guns 2315 | 151 55 395 . 1714 Cannons 3321 | . . 54 . 3267 Explosions 1172 | . . . . 1172 Melee 1425 | . . . . 1425 Ramming 8 | . . . . 8 Kinetic 5490 | 151 55 395 . 4889 Thermal 510 | . . 54 . 456 Explosive . | . . . . . Electromagnetic 808 | . . . . 808 Impact . | . . . . . Slashing 1425 | . . . . 1425 Piercing . | . . . . . Highest Corruption 14 | . . . . 14 Average Corruption 8 | . . . . 8 Corruption Purged 4 | . . . . 4 Corruption Blocked . | . . . . . Effects 92 | . . . . 92 Message Errors 24 | . . . . 24 Matter Fused 16 | . . . . 16 Heat Flow Errors 12 | . . . . 12 Energy Discharges 6 | . . . . 6 Parts Rejected 1 | . . . . 1 Parts Fused 1 | . . . . 1 Data Loss (minor) 10 | . . . . 10 Data Loss (major) 11 | . . . . 11 Misfires 4 | . . . . 4 Alerts 4 | . . . . 4 Weapon Failures 3 | . . . . 3 Overload Shots . | . . . . . Overflow Damage 178 | . . . . 178 Projectiles 8 | . . . . 8 Explosions 113 | . . . . 113 Melee 57 | . . . . 57 Knockbacks 32 | . . . . 32 Impact . | . . . . . Kinetic 28 | . . . . 28 Secondary 4 | . . . . 4 Self-Inflicted Damage 161 | . . . . 161 Shots 6 | . . . . 6 Rammed . | . . . . . Targets Rammed 2 | . . . . 2 Kicked 2 | . . . . 2 Crushed . | . . . . . Highest Temperature 454 | . 19 2 . 454 Average Temperature 97 | . 9 2 . 100 Received Heat Transfer 1747 | . 78 102 . 1567 Effects 4 | . . . . 4 Shutdowns 2 | . . . . 2 Interference 1 | . . . . 1 Matter Decay 1 | . . . . 1 Siege Activations . | . . . . . Martial Activations . | . . . . . Shielding Activations . | . . . . . Robots Disrupted 1 | . . . . 1 Combat Hostiles 1 | . . . . 1 Robots Corrupted . | . . . . . Combat Hostiles . | . . . . . Parts Fried 1 | . . . . 1 Impact Corruptions 1 | . . . . 1 Robots Melted . | . . . . . Combat Hostiles . | . . . . . Parts Melted 3 | . . 2 . 1 Heat Transferred 549 | . . 74 . 475 Parts Sabotaged 3 | . . . . 3 Parts Stolen . | . . . . . Parts Stripped . | . . . . . Power Chain Reactions 1 | . . . . 1 Alert | -11 -10 -10 -9 -6 ------- Run | Yrd Mat Sub Scr Fac Maximum Alert Level 3 | . . . . 3 Low Security (%) 29 | 100 100 . . 17 Level 1 36 | . . . . 42 Level 2 25 | . . . . 29 Level 3 8 | . . . . 10 Level 4 . | . . . . . Level 5 . | . . . . . High Security . | . . . . . Max Security . | . . . . . Peak Influence 754 | 10 42 . . 754 Initial . | . . . . . Average 317 | . 5 . . 368 Influence Increases 1812 | 20 47 . . 1745 Destroy 0b10 Robot/C 1020 | . 20 . . 1000 Destroy 0b10 Robot/NC 50 | 20 5 . . 25 Destroy Leader 220 | . 10 . . 210 Allied During Kill 19 | . . . . 19 Successful Hack 50 | . 12 . . 38 Disable Machine 150 | . . . . 150 Destroy Structure 93 | . . . . 93 Lose Combat Pursuer 210 | . . . . 210 Influence Decreases 1108 | 20 47 . . 1041 Time Decay 668 | 20 47 . . 601 Lost Part 400 | . . . . 400 Lost Ally 40 | . . . . 40 Squads Dispatched 20 | . . . . 20 Investigation 7 | . . . . 7 Extermination 4 | . . . . 4 Reinforcement 7 | . . . . 7 Assault 2 | . . . . 2 Garrison . | . . . . . Intercept . | . . . . . Searches Triggered . | . . . . . Construction Impeded 2 | . . . . 2 Haulers Reinforced . | . . . . . Active Scanning Responses . | . . . . . Cargo Convoy Interrupts 1 | . . . . 1 Stealth | -11 -10 -10 -9 -6 --------- Run | Yrd Mat Sub Scr Fac Distress Signals 3 | . . . . 3 Communications Jammed . | . . . . . Distress Signals . | . . . . . Times Spotted 86 | . 7 5 . 74 Peak Tracking Total 8 | . 2 3 . 8 Tactical Retreats 8 | . . . . 8 Traps | -11 -10 -10 -9 -6 ------- Run | Yrd Mat Sub Scr Fac Traps Triggered . | . . . . . Indirectly . | . . . . . Trap Hack Attempts . | . . . . . Triggered . | . . . . . Disarmed . | . . . . . Reprogrammed . | . . . . . Reused . | . . . . . Traps Extracted . | . . . . . Installed . | . . . . . Triggered . | . . . . . Machines | -11 -10 -10 -9 -6 ---------- Run | Yrd Mat Sub Scr Fac Machines Disabled 10 | . . . . 10 Max in Single Turn 6 | . . . . 6 Machines Repaired . | . . . . . Machines Dismantled . | . . . . . Machines Sabotaged . | . . . . . Overloaded Fab Kills . | . . . . . Hacking | -11 -10 -10 -9 -6 --------- Run | Yrd Mat Sub Scr Fac Machines Accessed 24 | . 4 . 10 10 Terminals 7 | . 4 . . 3 Fabricators 1 | . . . . 1 Repair Stations 1 | . . . . 1 Recycling Units 4 | . . . . 4 Scanalyzers . | . . . . . Garrison Access 1 | . . . . 1 Total Hacks 74 | . 14 . 33 27 Successful 53 | . 6 . 33 14 Failed 21 | . 8 . . 13 Catastrophic 6 | . 2 . . 4 Database Lockouts . | . . . . . Manual 16 | . 6 . . 10 Terminals 24 | . 14 . . 10 Fabricators 2 | . . . . 2 Repair Stations 2 | . . . . 2 Recycling Units 11 | . . . . 11 Scanalyzers . | . . . . . Garrison Access 2 | . . . . 2 Terminal Hacks 39 | . 4 . 33 2 Record 31 | . . . 31 . Part Schematic 2 | . 1 . . 1 Prototype ID Bank 1 | . 1 . . . Open Door 1 | . . . 1 . Level Access Points 1 | . . . . 1 Hauler Manifests 1 | . 1 . . . Registered Components 1 | . 1 . . . Proto ID Catalog 1 | . . . 1 . Fabricator Hacks 2 | . . . . 2 Load Schematic 1 | . . . . 1 Build 1 | . . . . 1 Repair Station Hacks 2 | . . . . 2 Scan Component 1 | . . . . 1 Repair 1 | . . . . 1 Recycling Unit Hacks 3 | . . . . 3 Report Inventory 3 | . . . . 3 Scanalyzer . | . . . . . Garrison Access Hacks . | . . . . . Unauthorized Hacks 7 | . 2 . . 5 Terminals 4 | . 2 . . 2 Botnet 4 | . 2 . . 2 Fabricators . | . . . . . Repair Stations . | . . . . . Recycling Units 3 | . . . . 3 Fedlink 3 | . . . . 3 Scanalyzers . | . . . . . Garrison Access . | . . . . . Data Cores Recovered 2 | . 1 . . 1 Used . | . . . . . Hacking Detections 12 | . 4 . . 8 Full Trace Events 4 | . 1 . . 3 Feedback Events . | . . . . . Feedback Blocked . | . . . . . Robot Schematics Acquired . | . . . . . Robots Built . | . . . . . Authchips . | . . . . . Time . | . . . . . Total Robot Build Rating . | . . . . . Part Schematics Acquired 2 | . 1 . . 1 Parts Built 2 | . . . . 2 Authchips . | . . . . . Time 95 | . . . . 95 Total Part Build Rating 10 | . . . . 10 Parts Repaired 1 | . . . . 1 Time 44 | . . . . 44 Parts Recycled . | . . . . . Recycled Matter . | . . . . . Retrieved Matter . | . . . . . Retrieved Components . | . . . . . Parts Scanalyzed . | . . . . . Part Schematics Acquired . | . . . . . Parts Damaged . | . . . . . Bothacking | -11 -10 -10 -9 -6 ------------ Run | Yrd Mat Sub Scr Fac Used RIF Installer . | . . . . . Robots Hacked . | . . . . . Non-combat . | . . . . . Combat . | . . . . . Robot Hacks Applied . | . . . . . Relay Couplers Released . | . . . . . Fabnet Peak Effective % . | . . . . . Robots Rewired 1 | . . . . 1 Allies Hacked . | . . . . . Hacks Repelled . | . . . . . Allies | -11 -10 -10 -9 -6 -------- Run | Yrd Mat Sub Scr Fac Total Allies 2 | . . . . 2 Largest Group 1 | . . . . 1 Highest-Rated Group 47 | . . . . 47 Highest-Rated Ally 47 | . . . . 47 Total Orders . | . . . . . Ally Attacks 13 | . . . . 13 Total Damage 265 | . . . . 265 Kills 2 | . . . . 2 Allies Corrupted 1 | . . . . 1 Allies Melted . | . . . . . Intel | -11 -10 -10 -9 -6 ------- Run | Yrd Mat Sub Scr Fac Active Infowar (turns) 2320 | 52 333 571 . 1364 IFF 211 | . . . . 211 Terrain 1829 | 52 333 80 . 1364 Seismic 491 | . . 491 . . Robot Analysis Total . | . . . . . Derelict Logs Recovered 5 | . . 1 4 . Drone Launches . | . . . . . Drone Recoveries . | . . . . . Exploration | -11 -10 -10 -9 -6 ------------- Run | Yrd Mat Sub Scr Fac Turns Passed 7567 | 128 333 661 3626 2819 Spaces Moved 3596 | 55 248 451 1774 1068 Core 2 | 2 . . . . Treads 57 | 53 4 . . . Legs 2471 | . 244 397 974 856 Wheels 1066 | . . 54 800 212 Hover . | . . . . . Flight . | . . . . . Fastest Speed 50 | 50 120 120 120 115 Average Speed 175 | 156 120 120 200 170 Slowest Speed 270 | 160 160 120 260 270 Overloaded Moves . | . . . . . Propulsion Burnouts . | . . . . . Robots Hopped . | . . . . . Potential Cave-ins 2 | . . . . 2 Cave-ins Triggered . | . . . . . Exploration Rate (%) 42 | 4 61 33 93 22 Regions Visited 4 Branch Regions 2 Pre-discovered Areas 5 | . . . 4 1 Known Exits Taken . | . . . . . Unknown Exits Taken 4 | 1 1 1 1 . Scrap Searched 7 | . . . 7 . Spaces Dug 14 | . . . . 14 Terrain Destroyed 87 | . . 1 . 86 Melee 4 | . . . . 4 Projectile 61 | . . 1 . 60 AOE 21 | . . . . 21 Terrain Rammed . | . . . . . Walls Destroyed . | . . . . . Machines Disabled . | . . . . . Actions | -11 -10 -10 -9 -6 --------- Run | Yrd Mat Sub Scr Fac Total 4399 | 78 269 534 1845 1673 Wait 291 | . 6 43 15 227 Move 3592 | 54 247 450 1773 1068 Hop . | . . . . . Pick Up 75 | 8 2 7 26 32 Fast Attach 42 | 7 . . 4 31 Attach 35 | . . 4 . 31 Detach 3 | . . . 1 2 Swap 56 | . 4 2 8 42 Drop 57 | . 3 7 18 29 Fire 185 | 9 7 21 . 148 Melee 60 | . . . . 60 Ram . | . . . . . Kick 2 | . . . . 2 Crush . | . . . . . Escape Stasis . | . . . . . Rewire 1 | . . . . 1 Trap . | . . . . . Miscellaneous . | . . . . . Route ------- -11/Scrapyard -10/Materials (discovered 3 exits: [*Mat] / [*Min] / [*Sub]) -10/Subcaves (discovered 3 exits: [*Mat] / *Scr x2) -9/Scraptown (discovered 2 exits: *Fac x2) -6/Factory (discovered 4 exits: Fac x4) History --------- Turn | Location | Event 2 | -11/Scrapyard | Met Revision 17 40 | -11/Scrapyard | Discovered new exit (range 15) 129 | -11/Scrapyard | Entered Materials 130 | -10/Materials | Met a group of wandering Federalists 246 | -10/Materials | Discovered new exit (range 12) 311 | -10/Materials | Build established: Mutant 359 | -10/Materials | Discovered new exit (range 3) 377 | -10/Materials | Discovered new exit (range 16) 462 | -10/Materials | Entered Subcaves 463 | -10/Subcaves | Continued accompanying wandering Federalists (3) 463 | -10/Subcaves | Approached by a straggling Scientist 481 | -10/Subcaves | Scientist uncovered a shortcut to Scraptown 611 | -10/Subcaves | Learned Materials trap positions 728 | -10/Subcaves | Wandering Federalist uncovered a shortcut to Scraptown 768 | -10/Subcaves | Discovered new exit (range 7) 1014 | -10/Subcaves | Ambushed by Subdweller buried in earth 1033 | -10/Subcaves | Core integrity fell below 50% 1042 | -10/Subcaves | Core integrity fell below 20% 1073 | -10/Subcaves | Lost 5 parts (1p2n1u1w) 1123 | -10/Subcaves | Entered Scraptown 1324 | -9/Scraptown | Build established: Scavenger-Mutant 1440 | -9/Scraptown | Discovered new exit (range 7) 1476 | -9/Scraptown | Scanned Subdweller tech in exchange for log data 1479 | -9/Scraptown | Learned Factory security intel 1480 | -9/Scraptown | Learned location of Quarantine (-2) 1482 | -9/Scraptown | Learned Factory garrison access intel 1483 | -9/Scraptown | Learned location of Armory (-3) 1513 | -9/Scraptown | Visited Cyclists 1562 | -9/Scraptown | Visited Bundlers 1659 | -9/Scraptown | Build established: Mutant 1982 | -9/Scraptown | Visited Symbiants 2021 | -9/Scraptown | Visited Red Mages 2082 | -9/Scraptown | Visited Comm Corps 2165 | -9/Scraptown | Visited IN-MT5's Study 2549 | -9/Scraptown | Visited Shadow of the Wyrm 2817 | -9/Scraptown | Visited UFD Registry 2817 | -9/Scraptown | Registered with UFD as "Hammercycle" 2923 | -9/Scraptown | Entered Cyclist Reading Room 2934 | -9/Scraptown | Learned location of Exiles (-9) 2934 | -9/Scraptown | Learned location of Zion (-6) 3204 | -9/Scraptown | Visited Curators Association 3241 | -9/Scraptown | Visited Science Testing Area 3316 | -9/Scraptown | Visited Science Guys 3756 | -9/Scraptown | Visited Scrap Suit Storage 3770 | -9/Scraptown | Found Scrap Suit 3812 | -9/Scraptown | Visited Abandonware Association 3838 | -9/Scraptown | Learned abandonware demo "TRNCOAT.EXE" 3838 | -9/Scraptown | Learned abandonware demo "MELTYB.EXE" 3885 | -9/Scraptown | Visited Botcube Research 3904 | -9/Scraptown | Found Botcube 4110 | -9/Scraptown | Discovered new exit (range 5) 4201 | -9/Scraptown | Visited Sword Containment 4328 | -9/Scraptown | Visited Supply Room 4385 | -9/Scraptown | Visited Observation Area 4644 | -9/Scraptown | Met Optimus 4644 | -9/Scraptown | Accepted into 0bPrime 4749 | -9/Scraptown | Entered Factory 4749 | -6/Factory | Evolved 8 slots: Propulsion x2, Utility x5, Weapon x1 4751 | -6/Factory | Loaded intel: 4 garrison access locations 4906 | -6/Factory | Loaded intel: 8 recycling unit locations 4982 | -6/Factory | System corruption reached 10% 5069 | -6/Factory | Build established: Tank 5115 | -6/Factory | Botcube activated 5129 | -6/Factory | Botcube completed mutation into legged form, armed with 2 guns. 5237 | -6/Factory | Lost 5 parts (1p2n1u1w) 5657 | -6/Factory | Repaired Gauss Rifle 5893 | -6/Factory | Cargo convoy interrupted 5997 | -6/Factory | Identified exit to Factory 6352 | -6/Factory | Lost 5 parts (2n1u2w) 6503 | -6/Factory | Core integrity fell below 50% 6593 | -6/Factory | Learned location of Protoforge (-2) 6816 | -6/Factory | Fabricated Magnetic Acceleration Cannon? 6832 | -6/Factory | Build established: Scavenger-Skirmisher 6849 | -6/Factory | First assault squad dispatched 7303 | -6/Factory | Build established: Scavenger-Gunner 7431 | -6/Factory | Lost 11 parts (1p3n4u3w) 7505 | -6/Factory | Core integrity fell below 20% 7566 | -6/Factory | Lost 8 parts (1p2n2u3w) 7568 | -6/Factory | Destroyed by H-66 Slayer with Gauss Rifle Last Messages --------------- 07512_ Acquired Proton Cannon. 07513_ Adv. Heat Sink destroyed. 07513_ Slug penetrates Wall. 07516_ Acquired Adv. Terrain Scanner. 07517_ Penetrated by Slug. 07517_ Slug penetrates G-50 Soldier. 07517_ Carbon-fiber Leg destroyed. 07525_ System corrupted: Energy discharge (-28). 07529_ Slug penetrates Wall. 07529_ Critical hit (Destroy). 07529_ Lgt. Antimatter Reactor destroyed. 07529_ Slug penetrates Wall. 07529_ Carbon-fiber Leg destroyed. 07531_ Proton Cannon destroyed. 07532_ Slug penetrates Wall. 07535_ Cooling System destroyed. 07541_ LJS,E Y